[Event "Titled Tuesday Blitz November 14 Early 2023"]
[White "SicilianPanzer"]
[Black "Mikhalsky, Vladimir"]
[BlackFideId "14144352"]
[WhiteElo "2309"]
[BlackElo "2435"]
[Result "1-0"]
[Round "7"]
[TimeControl "180+1"]
[Date "2023.11.14"]
[WhiteClock "0:00:04"]
[BlackClock "0:00:00"]
[Board "149"]

1. e4 {[%clk 0:02:58]}  g6 {[%clk 0:02:41]} 2. d4 {[%clk 0:02:57]}  Bg7 {[%clk 0:02:40]} 3. Nc3 {[%clk 0:02:57]}  d6 {[%clk 0:02:40]} 4. Be3 {[%clk 0:02:56]}  a6 {[%clk 0:02:39]} 5. h4 {[%clk 0:02:40]}  h5 {[%clk 0:02:38]} 6. a4 {[%clk 0:02:35]}  Nc6 {[%clk 0:02:32]} 7. Bc4 {[%clk 0:02:27]}  Nf6 {[%clk 0:02:26]} 8. f3 {[%clk 0:02:22]}  O-O {[%clk 0:02:21]} 9. Qd2 {[%clk 0:02:20]}  e5 {[%clk 0:02:18]} 10. d5 {[%clk 0:02:14]}  Nd4 {[%clk 0:02:07]} 11. Nd1 {[%clk 0:02:09]}  c6 {[%clk 0:02:00]} 12. Ne2 {[%clk 0:01:31]}  cxd5 {[%clk 0:01:57]} 13. Bxd5 {[%clk 0:01:22]}  Nxd5 {[%clk 0:01:53]} 14. exd5 {[%clk 0:01:22]}  Bf5 {[%clk 0:01:39]} 15. Nxd4 {[%clk 0:01:17]}  exd4 {[%clk 0:01:38]} 16. Bxd4 {[%clk 0:01:17]}  Re8+ {[%clk 0:01:38]} 17. Kf2 {[%clk 0:01:16]}  Bxd4+ {[%clk 0:01:26]} 18. Qxd4 {[%clk 0:01:15]}  Bxc2 {[%clk 0:01:16]} 19. Ne3 {[%clk 0:01:11]}  Rc8 {[%clk 0:01:15]} 20. Rhc1 {[%clk 0:01:08]}  Bb3 {[%clk 0:00:45]} 21. Qb4 {[%clk 0:00:34]}  Rxc1 {[%clk 0:00:29]} 22. Rxc1 {[%clk 0:00:33]}  Rxe3 {[%clk 0:00:26]} 23. Kxe3 {[%clk 0:00:32]}  Bxd5 {[%clk 0:00:26]} 24. Rd1 {[%clk 0:00:27]}  Bc6 {[%clk 0:00:20]} 25. Qxd6 {[%clk 0:00:19]}  Qb6+ {[%clk 0:00:18]} 26. Qd4 {[%clk 0:00:16]}  Qb3+ {[%clk 0:00:18]} 27. Rd3 {[%clk 0:00:16]}  Qc2 {[%clk 0:00:18]} 28. Rd2 {[%clk 0:00:12]}  Qb1 {[%clk 0:00:16]} 29. Kf2 {[%clk 0:00:12]}  Qf5 {[%clk 0:00:14]} 30. Qd8+ {[%clk 0:00:10]}  Kh7 {[%clk 0:00:13]} 31. Qg5 {[%clk 0:00:10]}  Qe6 {[%clk 0:00:11]} 32. Re2 {[%clk 0:00:09]}  Qb3 {[%clk 0:00:10]} 33. Qf6 {[%clk 0:00:09]}  Bxa4 {[%clk 0:00:08]} 34. Re7 {[%clk 0:00:09]}  Qc2+ {[%clk 0:00:06]} 35. Kg3 {[%clk 0:00:08]}  Bb3 {[%clk 0:00:06]} 36. Rxb7 {[%clk 0:00:07]}  Be6 {[%clk 0:00:00]} 37. Qxe6 {[%clk 0:00:04]} 1-0


[Site "https://www.chess.com"]

[Event "Titled Tuesday Blitz November 14 Early 2023"]
[White "Spichkin, Alexander"]
[Black "ATM622"]
[WhiteFideId "4144074"]
[WhiteElo "2306"]
[BlackElo "2431"]
[Result "1/2-1/2"]
[Round "7"]
[TimeControl "180+1"]
[Date "2023.11.14"]
[WhiteClock "0:01:18"]
[BlackClock "0:00:06"]
[Board "151"]

1. f4 {[%clk 0:02:59]}  d5 {[%clk 0:02:57]} 2. Nf3 {[%clk 0:02:59]}  Nf6 {[%clk 0:02:55]} 3. e3 {[%clk 0:02:56]}  g6 {[%clk 0:02:54]} 4. Be2 {[%clk 0:02:56]}  Bg7 {[%clk 0:02:54]} 5. O-O {[%clk 0:02:53]}  O-O {[%clk 0:02:55]} 6. d3 {[%clk 0:02:54]}  c5 {[%clk 0:02:55]} 7. Kh1 {[%clk 0:02:53]}  Nc6 {[%clk 0:02:55]} 8. a4 {[%clk 0:02:53]}  Qc7 {[%clk 0:02:54]} 9. Nc3 {[%clk 0:02:53]}  e5 {[%clk 0:02:53]} 10. Nb5 {[%clk 0:02:52]}  Qe7 {[%clk 0:02:51]} 11. fxe5 {[%clk 0:02:50]}  Nxe5 {[%clk 0:02:50]} 12. Nxe5 {[%clk 0:02:51]}  Qxe5 {[%clk 0:02:50]} 13. e4 {[%clk 0:02:51]}  g5 {[%clk 0:02:30]} 14. c3 {[%clk 0:02:48]}  dxe4 {[%clk 0:02:27]} 15. d4 {[%clk 0:02:48]}  cxd4 {[%clk 0:02:23]} 16. cxd4 {[%clk 0:02:48]}  Qb8 {[%clk 0:02:15]} 17. Bxg5 {[%clk 0:02:47]}  Nd5 {[%clk 0:02:14]} 18. Bc4 {[%clk 0:02:29]}  Be6 {[%clk 0:02:06]} 19. Re1 {[%clk 0:02:29]}  f5 {[%clk 0:01:44]} 20. Qb3 {[%clk 0:02:24]}  Rd8 {[%clk 0:01:17]} 21. Bxd8 {[%clk 0:02:23]}  Qxd8 {[%clk 0:01:18]} 22. Nc3 {[%clk 0:02:23]}  Nf4 {[%clk 0:01:08]} 23. Bxe6+ {[%clk 0:02:22]}  Kh8 {[%clk 0:01:08]} 24. Bxf5 {[%clk 0:02:16]}  Qg5 {[%clk 0:01:07]} 25. Bxe4 {[%clk 0:02:14]}  Rg8 {[%clk 0:00:52]} 26. Nd5 {[%clk 0:02:06]}  Bxd4 {[%clk 0:00:51]} 27. Nxf4 {[%clk 0:02:04]}  Qxf4 {[%clk 0:00:50]} 28. Qf7 {[%clk 0:02:01]}  Qxf7 {[%clk 0:00:49]} 29. Rad1 {[%clk 0:01:59]}  Qf2 {[%clk 0:00:38]} 30. b4 {[%clk 0:01:55]}  Re8 {[%clk 0:00:33]} 31. Rf1 {[%clk 0:01:49]}  Rxe4 {[%clk 0:00:26]} 32. Rxf2 {[%clk 0:01:49]}  Bxf2 {[%clk 0:00:26]} 33. Rb1 {[%clk 0:01:46]}  Re1+ {[%clk 0:00:25]} 34. Rxe1 {[%clk 0:01:46]}  Bxe1 {[%clk 0:00:26]} 35. b5 {[%clk 0:01:46]}  Bf2 {[%clk 0:00:25]} 36. g3 {[%clk 0:01:46]}  Kg7 {[%clk 0:00:25]} 37. Kg2 {[%clk 0:01:47]}  Bb6 {[%clk 0:00:24]} 38. Kf3 {[%clk 0:01:47]}  Kf6 {[%clk 0:00:25]} 39. Kf4 {[%clk 0:01:46]}  h5 {[%clk 0:00:23]} 40. Ke4 {[%clk 0:01:42]}  Ba5 {[%clk 0:00:23]} 41. Kd5 {[%clk 0:01:40]}  Bb4 {[%clk 0:00:22]} 42. Kc4 {[%clk 0:01:39]}  Bf8 {[%clk 0:00:19]} 43. Kd5 {[%clk 0:01:40]}  Kf5 {[%clk 0:00:19]} 44. h3 {[%clk 0:01:36]}  Be7 {[%clk 0:00:18]} 45. g4+ {[%clk 0:01:24]}  hxg4 {[%clk 0:00:19]} 46. hxg4+ {[%clk 0:01:25]}  Kxg4 {[%clk 0:00:20]} 47. Ke6 {[%clk 0:01:25]}  Bc5 {[%clk 0:00:17]} 48. Kd7 {[%clk 0:01:25]}  a5 {[%clk 0:00:16]} 49. bxa6 {[%clk 0:01:19]}  bxa6 {[%clk 0:00:16]} 50. Kc6 {[%clk 0:01:17]}  Bb4 {[%clk 0:00:16]} 51. a5 {[%clk 0:01:17]}  Bxa5 {[%clk 0:00:06]} 52. Kb7 {[%clk 0:01:17]}  Be1 {[%clk 0:00:06]} 53. Kxa6 {[%clk 0:01:18]} 1/2-1/2


[Site "https://www.chess.com"]

[Event "Titled Tuesday Blitz November 14 Early 2023"]
[White "Quirke, Jeffrey"]
[Black "Herman, Daniel"]
[WhiteFideId "2013029"]
[BlackFideId "30935008"]
[WhiteElo "2258"]
[BlackElo "2412"]
[Result "1-0"]
[Round "7"]
[TimeControl "180+1"]
[Date "2023.11.14"]
[WhiteClock "0:00:02"]
[BlackClock "0:00:06"]
[Board "155"]

1. e4 {[%clk 0:03:00]}  Nf6 {[%clk 0:02:56]} 2. e5 {[%clk 0:02:55]}  Nd5 {[%clk 0:02:57]} 3. Nc3 {[%clk 0:02:55]}  e6 {[%clk 0:02:56]} 4. Bc4 {[%clk 0:02:47]}  Nb6 {[%clk 0:02:44]} 5. Bb3 {[%clk 0:02:46]}  d6 {[%clk 0:02:44]} 6. Nf3 {[%clk 0:02:41]}  Nc6 {[%clk 0:02:42]} 7. exd6 {[%clk 0:02:32]}  cxd6 {[%clk 0:02:40]} 8. d4 {[%clk 0:02:31]}  d5 {[%clk 0:02:40]} 9. O-O {[%clk 0:02:29]}  Bd6 {[%clk 0:02:39]} 10. Ne2 {[%clk 0:02:28]}  O-O {[%clk 0:02:28]} 11. Bf4 {[%clk 0:02:28]}  Na5 {[%clk 0:02:14]} 12. c3 {[%clk 0:02:25]}  Nbc4 {[%clk 0:02:06]} 13. Qc1 {[%clk 0:02:05]}  b5 {[%clk 0:01:59]} 14. Bc2 {[%clk 0:02:03]}  Rb8 {[%clk 0:01:52]} 15. b4 {[%clk 0:01:47]}  Nc6 {[%clk 0:01:49]} 16. a4 {[%clk 0:01:48]}  a5 {[%clk 0:01:24]} 17. axb5 {[%clk 0:01:47]}  Rxb5 {[%clk 0:01:24]} 18. bxa5 {[%clk 0:01:47]}  N6xa5 {[%clk 0:01:15]} 19. Ng3 {[%clk 0:01:19]}  Nb3 {[%clk 0:01:00]} 20. Bxb3 {[%clk 0:01:18]}  Rxb3 {[%clk 0:00:59]} 21. Bxd6 {[%clk 0:01:08]}  Qxd6 {[%clk 0:01:00]} 22. Nh5 {[%clk 0:01:03]}  f6 {[%clk 0:00:48]} 23. Ra7 {[%clk 0:00:53]}  Bd7 {[%clk 0:00:34]} 24. Re1 {[%clk 0:00:35]}  Rfb8 {[%clk 0:00:28]} 25. Nd2 {[%clk 0:00:28]}  Nxd2 {[%clk 0:00:24]} 26. Qxd2 {[%clk 0:00:29]}  Rb1 {[%clk 0:00:20]} 27. g3 {[%clk 0:00:24]}  R8b2 {[%clk 0:00:18]} 28. Qe3 {[%clk 0:00:23]}  Rxe1+ {[%clk 0:00:18]} 29. Qxe1 {[%clk 0:00:23]}  Kf7 {[%clk 0:00:16]} 30. Qe3 {[%clk 0:00:19]}  g5 {[%clk 0:00:16]} 31. h4 {[%clk 0:00:18]}  Kg6 {[%clk 0:00:15]} 32. hxg5 {[%clk 0:00:12]}  Kxh5 {[%clk 0:00:13]} 33. gxf6 {[%clk 0:00:07]}  Kg6 {[%clk 0:00:13]} 34. Qf3 {[%clk 0:00:05]}  Rb1+ {[%clk 0:00:11]} 35. Kg2 {[%clk 0:00:05]}  Rb2 {[%clk 0:00:09]} 36. f7 {[%clk 0:00:05]}  Kg7 {[%clk 0:00:08]} 37. Rxd7 {[%clk 0:00:03]}  Kf8 {[%clk 0:00:06]} 38. Rxd6 {[%clk 0:00:02]} 1-0


[Site "https://www.chess.com"]

[Event "Titled Tuesday Blitz November 14 Early 2023"]
[White "Marcziter, Dmitrii"]
[Black "Skibbe, Willi"]
[WhiteFideId "13900765"]
[BlackFideId "4682190"]
[WhiteElo "2403"]
[BlackElo "2242"]
[Result "1-0"]
[Round "7"]
[TimeControl "180+1"]
[Date "2023.11.14"]
[WhiteClock "0:00:05"]
[BlackClock "0:00:00"]
[Board "157"]

1. d4 {[%clk 0:03:00]}  d5 {[%clk 0:02:56]} 2. c4 {[%clk 0:03:01]}  e6 {[%clk 0:02:55]} 3. Nc3 {[%clk 0:03:00]}  c6 {[%clk 0:02:54]} 4. cxd5 {[%clk 0:02:59]}  exd5 {[%clk 0:02:54]} 5. Qc2 {[%clk 0:02:59]}  Bd6 {[%clk 0:02:52]} 6. Nf3 {[%clk 0:02:57]}  Ne7 {[%clk 0:02:52]} 7. g3 {[%clk 0:02:56]}  Bf5 {[%clk 0:02:51]} 8. Qd1 {[%clk 0:02:56]}  O-O {[%clk 0:02:48]} 9. Bg2 {[%clk 0:02:55]}  Nd7 {[%clk 0:02:44]} 10. O-O {[%clk 0:02:55]}  Nf6 {[%clk 0:02:41]} 11. Ne5 {[%clk 0:02:50]}  Ng6 {[%clk 0:02:37]} 12. f4 {[%clk 0:02:47]}  Ne4 {[%clk 0:02:37]} 13. Nxe4 {[%clk 0:02:44]}  Bxe4 {[%clk 0:02:36]} 14. Bxe4 {[%clk 0:02:39]}  dxe4 {[%clk 0:02:37]} 15. Be3 {[%clk 0:02:27]}  Ne7 {[%clk 0:02:23]} 16. Qb3 {[%clk 0:02:22]}  Bxe5 {[%clk 0:02:18]} 17. dxe5 {[%clk 0:02:19]}  Nd5 {[%clk 0:02:17]} 18. Bc5 {[%clk 0:02:17]}  Re8 {[%clk 0:02:05]} 19. Qxb7 {[%clk 0:01:59]}  Rb8 {[%clk 0:02:01]} 20. Qxc6 {[%clk 0:01:57]}  Re6 {[%clk 0:01:27]} 21. Bd6 {[%clk 0:01:52]}  Ne3 {[%clk 0:01:25]} 22. Rfc1 {[%clk 0:01:43]}  Rxb2 {[%clk 0:01:19]} 23. Qxe4 {[%clk 0:01:36]}  Rxe2 {[%clk 0:01:08]} 24. Qf3 {[%clk 0:01:27]}  Rg2+ {[%clk 0:01:05]} 25. Kh1 {[%clk 0:01:26]}  Rh6 {[%clk 0:00:57]} 26. Qxg2 {[%clk 0:01:05]}  Nxg2 {[%clk 0:00:56]} 27. Kxg2 {[%clk 0:01:05]}  g5 {[%clk 0:00:52]} 28. Rab1 {[%clk 0:01:03]}  Rxd6 {[%clk 0:00:51]} 29. exd6 {[%clk 0:01:02]}  Qxd6 {[%clk 0:00:51]} 30. Rf1 {[%clk 0:00:52]}  Qd5+ {[%clk 0:00:47]} 31. Kg1 {[%clk 0:00:51]}  Qxa2 {[%clk 0:00:32]} 32. fxg5 {[%clk 0:00:46]}  Qd5 {[%clk 0:00:32]} 33. h4 {[%clk 0:00:30]}  a5 {[%clk 0:00:26]} 34. Rf4 {[%clk 0:00:28]}  Qc5+ {[%clk 0:00:20]} 35. Rf2 {[%clk 0:00:24]}  a4 {[%clk 0:00:19]} 36. Kg2 {[%clk 0:00:24]}  a3 {[%clk 0:00:19]} 37. Ra1 {[%clk 0:00:22]}  Qd5+ {[%clk 0:00:16]} 38. Kh2 {[%clk 0:00:22]}  Qd4 {[%clk 0:00:13]} 39. Rfa2 {[%clk 0:00:22]}  Qe3 {[%clk 0:00:12]} 40. Rxa3 {[%clk 0:00:21]}  Qf2+ {[%clk 0:00:12]} 41. Kh3 {[%clk 0:00:22]}  Qf5+ {[%clk 0:00:13]} 42. Kg2 {[%clk 0:00:22]}  Qe4+ {[%clk 0:00:13]} 43. Kf2 {[%clk 0:00:22]}  Qd4+ {[%clk 0:00:13]} 44. Kf3 {[%clk 0:00:22]}  Qd5+ {[%clk 0:00:13]} 45. Ke3 {[%clk 0:00:21]}  Qe5+ {[%clk 0:00:13]} 46. Kf3 {[%clk 0:00:20]}  Qf5+ {[%clk 0:00:13]} 47. Kg2 {[%clk 0:00:20]}  Qe4+ {[%clk 0:00:14]} 48. Kh2 {[%clk 0:00:20]}  Qe2+ {[%clk 0:00:14]} 49. Kg1 {[%clk 0:00:19]}  Kg7 {[%clk 0:00:11]} 50. Rf1 {[%clk 0:00:17]}  Qe5 {[%clk 0:00:08]} 51. Raf3 {[%clk 0:00:17]}  Kg8 {[%clk 0:00:06]} 52. Kg2 {[%clk 0:00:15]}  Qe2+ {[%clk 0:00:06]} 53. R1f2 {[%clk 0:00:16]}  Qe4 {[%clk 0:00:07]} 54. Kh2 {[%clk 0:00:16]}  h6 {[%clk 0:00:03]} 55. gxh6 {[%clk 0:00:14]}  Kh7 {[%clk 0:00:04]} 56. Rxf7+ {[%clk 0:00:14]}  Kxh6 {[%clk 0:00:04]} 57. R2f6+ {[%clk 0:00:14]}  Kh5 {[%clk 0:00:05]} 58. Rf5+ {[%clk 0:00:13]}  Kh6 {[%clk 0:00:04]} 59. R7f6+ {[%clk 0:00:13]}  Kh7 {[%clk 0:00:04]} 60. Rf2 {[%clk 0:00:12]}  Qe3 {[%clk 0:00:04]} 61. R6f4 {[%clk 0:00:12]}  Qe5 {[%clk 0:00:04]} 62. Kh3 {[%clk 0:00:12]}  Qe6+ {[%clk 0:00:05]} 63. Rf5 {[%clk 0:00:10]}  Kg6 {[%clk 0:00:04]} 64. Kh2 {[%clk 0:00:10]}  Qd6 {[%clk 0:00:04]} 65. h5+ {[%clk 0:00:09]}  Kh7 {[%clk 0:00:03]} 66. Rg5 {[%clk 0:00:09]}  Qd4 {[%clk 0:00:02]} 67. Rf7+ {[%clk 0:00:07]}  Kh8 {[%clk 0:00:02]} 68. Rff5 {[%clk 0:00:05]}  Kh7 {[%clk 0:00:02]} 69. Kh3 {[%clk 0:00:05]}  Qe4 {[%clk 0:00:01]} 70. Rf4 {[%clk 0:00:04]}  Qh1+ {[%clk 0:00:01]} 71. Kg4 {[%clk 0:00:05]}  Qd1+ {[%clk 0:00:02]} 72. Kf5 {[%clk 0:00:04]}  Qd3+ {[%clk 0:00:02]} 73. Kg4 {[%clk 0:00:05]}  Qd7+ {[%clk 0:00:00]} 74. Kh4 {[%clk 0:00:05]} 1-0


[Site "https://www.chess.com"]

[Event "Titled Tuesday Blitz November 14 Early 2023"]
[White "Limontaite, Simona"]
[Black "Ron_Weasley_Chess"]
[WhiteFideId "12802506"]
[WhiteElo "2241"]
[BlackElo "2395"]
[Result "0-1"]
[Round "7"]
[TimeControl "180+1"]
[Date "2023.11.14"]
[WhiteClock "0:00:14"]
[BlackClock "0:00:58"]
[Board "158"]

1. d4 {[%clk 0:03:00]}  Nf6 {[%clk 0:02:59]} 2. c4 {[%clk 0:03:00]}  c5 {[%clk 0:03:00]} 3. d5 {[%clk 0:03:00]}  b5 {[%clk 0:03:01]} 4. cxb5 {[%clk 0:03:00]}  a6 {[%clk 0:03:01]} 5. bxa6 {[%clk 0:03:01]}  g6 {[%clk 0:03:02]} 6. Nc3 {[%clk 0:03:02]}  Bg7 {[%clk 0:03:02]} 7. g3 {[%clk 0:03:02]}  O-O {[%clk 0:03:03]} 8. Bg2 {[%clk 0:03:02]}  d6 {[%clk 0:03:03]} 9. Nf3 {[%clk 0:03:03]}  Nbd7 {[%clk 0:03:04]} 10. Rb1 {[%clk 0:03:03]}  Nb6 {[%clk 0:03:04]} 11. O-O {[%clk 0:02:56]}  Bxa6 {[%clk 0:03:04]} 12. b3 {[%clk 0:02:50]}  Bb7 {[%clk 0:02:58]} 13. Nh4 {[%clk 0:02:42]}  Nfd7 {[%clk 0:02:41]} 14. Bb2 {[%clk 0:02:39]}  Bxc3 {[%clk 0:02:38]} 15. Bxc3 {[%clk 0:02:39]}  Rxa2 {[%clk 0:02:39]} 16. Re1 {[%clk 0:02:05]}  Qa8 {[%clk 0:02:15]} 17. e4 {[%clk 0:01:57]}  Rb8 {[%clk 0:02:15]} 18. Bh3 {[%clk 0:01:43]}  Ba6 {[%clk 0:02:12]} 19. Ra1 {[%clk 0:01:33]}  Bb5 {[%clk 0:02:09]} 20. Qf3 {[%clk 0:01:21]}  Ne5 {[%clk 0:01:56]} 21. Bxe5 {[%clk 0:01:21]}  dxe5 {[%clk 0:01:57]} 22. Rac1 {[%clk 0:01:13]}  Qa3 {[%clk 0:01:47]} 23. Qc3 {[%clk 0:01:09]}  c4 {[%clk 0:01:29]} 24. Bf1 {[%clk 0:01:02]}  Qc5 {[%clk 0:01:18]} 25. Rc2 {[%clk 0:00:48]}  Ra3 {[%clk 0:01:18]} 26. Qf3 {[%clk 0:00:43]}  Qb4 {[%clk 0:01:13]} 27. Rb1 {[%clk 0:00:32]}  Rxb3 {[%clk 0:01:07]} 28. Rxb3 {[%clk 0:00:29]}  cxb3 {[%clk 0:01:07]} 29. Rc7 {[%clk 0:00:26]}  Bxf1 {[%clk 0:01:04]} 30. d6 {[%clk 0:00:14]}  Qxd6 {[%clk 0:00:58]} 0-1


[Site "https://www.chess.com"]

[Event "Titled Tuesday Blitz November 14 Early 2023"]
[White "UK_23"]
[Black "Silvestre, Christian"]
[BlackFideId "30956269"]
[WhiteElo "2394"]
[BlackElo "2239"]
[Result "1-0"]
[Round "7"]
[TimeControl "180+1"]
[Date "2023.11.14"]
[WhiteClock "0:00:10"]
[BlackClock "0:00:02"]
[Board "159"]

1. e4 {[%clk 0:02:57]}  c5 {[%clk 0:02:58]} 2. Nf3 {[%clk 0:02:57]}  d6 {[%clk 0:02:57]} 3. Bb5+ {[%clk 0:02:57]}  Bd7 {[%clk 0:02:57]} 4. Bxd7+ {[%clk 0:02:56]}  Nxd7 {[%clk 0:02:58]} 5. O-O {[%clk 0:02:55]}  Ngf6 {[%clk 0:02:57]} 6. Re1 {[%clk 0:02:55]}  g6 {[%clk 0:02:57]} 7. c4 {[%clk 0:02:47]}  Bg7 {[%clk 0:02:57]} 8. d4 {[%clk 0:02:47]}  O-O {[%clk 0:02:58]} 9. Nc3 {[%clk 0:02:47]}  cxd4 {[%clk 0:02:58]} 10. Nxd4 {[%clk 0:02:48]}  a6 {[%clk 0:02:52]} 11. b3 {[%clk 0:02:48]}  Rc8 {[%clk 0:02:51]} 12. Bb2 {[%clk 0:02:48]}  Re8 {[%clk 0:02:49]} 13. Qd2 {[%clk 0:02:36]}  h5 {[%clk 0:02:36]} 14. Rad1 {[%clk 0:02:33]}  Qc7 {[%clk 0:02:30]} 15. f4 {[%clk 0:02:30]}  Qb8 {[%clk 0:02:26]} 16. Kh1 {[%clk 0:02:25]}  Bh6 {[%clk 0:02:20]} 17. Qe2 {[%clk 0:02:09]}  Bxf4 {[%clk 0:02:15]} 18. Rf1 {[%clk 0:02:06]}  Bh6 {[%clk 0:02:05]} 19. Nd5 {[%clk 0:02:05]}  Bg7 {[%clk 0:02:03]} 20. Rf3 {[%clk 0:01:48]}  Ne5 {[%clk 0:02:02]} 21. Rg3 {[%clk 0:01:47]}  Nxd5 {[%clk 0:01:50]} 22. exd5 {[%clk 0:01:47]}  b5 {[%clk 0:01:47]} 23. cxb5 {[%clk 0:01:40]}  axb5 {[%clk 0:01:47]} 24. Nxb5 {[%clk 0:01:40]}  Qb6 {[%clk 0:01:34]} 25. a4 {[%clk 0:01:39]}  Qa5 {[%clk 0:01:18]} 26. h3 {[%clk 0:01:32]}  Qb4 {[%clk 0:01:16]} 27. Rf1 {[%clk 0:01:18]}  Qh4 {[%clk 0:01:09]} 28. Re3 {[%clk 0:01:01]}  Rc5 {[%clk 0:00:57]} 29. Re4 {[%clk 0:00:51]}  Qg5 {[%clk 0:00:52]} 30. Bd4 {[%clk 0:00:50]}  Rc1 {[%clk 0:00:41]} 31. Rxc1 {[%clk 0:00:46]}  Qxc1+ {[%clk 0:00:40]} 32. Kh2 {[%clk 0:00:47]}  Rc8 {[%clk 0:00:35]} 33. Bb2 {[%clk 0:00:27]}  Qb1 {[%clk 0:00:32]} 34. Nc3 {[%clk 0:00:22]}  Rxc3 {[%clk 0:00:11]} 35. Bxc3 {[%clk 0:00:23]}  Qxb3 {[%clk 0:00:09]} 36. Be1 {[%clk 0:00:18]}  Qxd5 {[%clk 0:00:07]} 37. Bh4 {[%clk 0:00:17]}  f5 {[%clk 0:00:06]} 38. Re3 {[%clk 0:00:17]}  Kf7 {[%clk 0:00:05]} 39. Bg3 {[%clk 0:00:16]}  Qd4 {[%clk 0:00:05]} 40. a5 {[%clk 0:00:16]}  Qc5 {[%clk 0:00:04]} 41. a6 {[%clk 0:00:16]}  Qb6 {[%clk 0:00:04]} 42. Ra3 {[%clk 0:00:14]}  Qa7 {[%clk 0:00:02]} 43. Bf2 {[%clk 0:00:14]}  Qa8 {[%clk 0:00:03]} 44. a7 {[%clk 0:00:14]}  Nc6 {[%clk 0:00:03]} 45. Qc4+ {[%clk 0:00:11]}  e6 {[%clk 0:00:04]} 46. Qxc6 {[%clk 0:00:10]}  Be5+ {[%clk 0:00:04]} 47. g3 {[%clk 0:00:10]}  Qxc6 {[%clk 0:00:04]} 48. a8=Q {[%clk 0:00:10]}  Qf3 {[%clk 0:00:04]} 49. Ra7+ {[%clk 0:00:10]}  Kf6 {[%clk 0:00:02]} 50. Qd8# {[%clk 0:00:10]} 1-0


[Site "https://www.chess.com"]

[Event "Titled Tuesday Blitz November 14 Early 2023"]
[White "Hoffmann, Asa"]
[Black "Valy02chess"]
[WhiteFideId "2001470"]
[WhiteElo "2382"]
[BlackElo "2220"]
[Result "1-0"]
[Round "7"]
[TimeControl "180+1"]
[Date "2023.11.14"]
[WhiteClock "0:00:46"]
[BlackClock "0:01:06"]
[Board "160"]

1. d4 {[%clk 0:02:51]}  Nf6 {[%clk 0:02:57]} 2. Bg5 {[%clk 0:02:50]}  c5 {[%clk 0:02:55]} 3. d5 {[%clk 0:02:48]}  Qb6 {[%clk 0:02:54]} 4. Nc3 {[%clk 0:02:44]}  Qxb2 {[%clk 0:02:50]} 5. Bd2 {[%clk 0:02:44]}  Qb6 {[%clk 0:02:45]} 6. e4 {[%clk 0:02:43]}  a6 {[%clk 0:02:45]} 7. f4 {[%clk 0:02:43]}  d6 {[%clk 0:02:45]} 8. e5 {[%clk 0:02:43]}  Bg4 {[%clk 0:02:41]} 9. Be2 {[%clk 0:02:42]}  Bxe2 {[%clk 0:02:41]} 10. Qxe2 {[%clk 0:02:42]}  Nfd7 {[%clk 0:02:39]} 11. e6 {[%clk 0:02:32]}  fxe6 {[%clk 0:02:39]} 12. dxe6 {[%clk 0:02:32]}  Nf6 {[%clk 0:02:39]} 13. Nf3 {[%clk 0:02:21]}  Nc6 {[%clk 0:02:39]} 14. Rb1 {[%clk 0:02:20]}  Qc7 {[%clk 0:02:37]} 15. O-O {[%clk 0:02:11]}  g6 {[%clk 0:02:15]} 16. f5 {[%clk 0:02:09]}  gxf5 {[%clk 0:02:08]} 17. Qd3 {[%clk 0:02:06]}  Bg7 {[%clk 0:01:49]} 18. Qxf5 {[%clk 0:02:03]}  O-O-O {[%clk 0:01:49]} 19. Ng5 {[%clk 0:02:01]}  Nd4 {[%clk 0:01:45]} 20. Qd3 {[%clk 0:01:59]}  Ng4 {[%clk 0:01:35]} 21. Nd5 {[%clk 0:01:39]}  c4 {[%clk 0:01:22]} 22. Qg3 {[%clk 0:01:20]}  Qc5 {[%clk 0:01:20]} 23. Nxe7+ {[%clk 0:01:09]}  Kb8 {[%clk 0:01:20]} 24. Qxg4 {[%clk 0:01:05]}  Nb3+ {[%clk 0:01:20]} 25. Kh1 {[%clk 0:01:01]}  Nxd2 {[%clk 0:01:20]} 26. Ne4 {[%clk 0:00:48]}  Qd4 {[%clk 0:01:10]} 27. Nc6+ {[%clk 0:00:47]}  Kc7 {[%clk 0:01:08]} 28. Nxd4 {[%clk 0:00:46]}  Nxf1 {[%clk 0:01:06]} 29. Qxg7+ {[%clk 0:00:46]} 1-0


[Site "https://www.chess.com"]